bitfinex/quotes_SOLUSD_20251019
["timestamp","ask_amount","ask_price","bid_price","bid_amount"]
[1760832000436,0.66,187.91,187.84,0.2]
[1760832000639,0.66,187.91,187.87,3.57292641]
[1760832000824,0.66,187.9,187.87,3.57292641]
[1760832001024,0.66,187.89,187.84,0.2]
[1760832001346,0.66,187.89,187.85,4.13292641]
[1760832001646,0.66,187.88,187.85,3.57292641]
[1760832001832,0.66,187.88,187.84,0.76]
[1760832002136,0.66,187.88,187.84,0.2]
[1760832002336,10.87647521,187.96,187.84,0.2]
[1760832002337,0.66,187.9,187.85,0.56]
[1760832002515,10.87647521,187.97,187.86,0.53231129]
[1760832002718,4.25068712,187.96,187.85,0.56]
[1760832002940,4.25068712,187.96,187.84,0.2]
[1760832003143,0.66,187.96,187.85,10.87647521]
[1760832003340,0.66,187.95,187.85,11.43647521]
[1760832003525,3.59068712,187.96,187.86,0.56]
[1760832003526,0.66,187.94,187.86,0.56]
[1760832003927,0.66,187.94,187.85,10.87647521]
[1760832004243,0.66,187.93,187.85,11.43647521]
[1760832004535,0.66,187.92,187.85,10.87647521]
[1760832004737,0.66,187.91,187.86,0.56]
[1760832004919,0.66,187.9,187.86,0.56]
[1760832005121,3.59068712,187.96,187.86,0.56]
[1760832005321,0.66,187.95,187.85,10.87647521]
[1760832005524,3.59068712,187.96,187.85,10.87647521]
[1760832005743,0.66,187.94,187.85,10.87647521]
[1760832005931,0.66,187.93,187.85,11.43647521]
[1760832006127,0.66,187.92,187.85,11.43647521]
[1760832006325,0.66,187.91,187.85,11.43647521]
[1760832006638,0.66,187.9,187.85,11.43647521]
[1760832006838,0.66,187.9,187.86,5.32311295]
[1760832007037,0.66,187.89,187.86,5.32311295]
[1760832007230,0.66,187.9,187.86,5.88311295]
[1760832010248,0.7,187.9,187.86,5.88311295]
[1760832010446,0.7,187.89,187.86,5.32311295]
[1760832010654,0.7,187.88,187.85,5.32339028]
[1760832011025,3.59068712,187.96,187.85,5.32339028]
[1760832011026,0.7,187.87,187.85,5.32339028]
[1760832011228,3.59068712,187.96,187.85,5.32339028]
[1760832011435,10.87647521,187.94,187.85,5.32339028]
[1760832011634,0.7,187.93,187.85,5.32339028]
[1760832011830,0.7,187.92,187.85,5.32339028]
[1760832012033,0.7,187.91,187.85,5.32339028]
[1760832012238,0.7,187.9,187.85,5.32339028]
[1760832012436,0.7,187.89,187.85,5.32339028]
[1760832012720,0.7,187.88,187.85,5.32339028]
[1760832012955,10.87647521,187.95,187.85,5.32339028]
[1760832012956,0.7,187.87,187.85,5.32339028]
[1760832013829,0.71,187.86,187.84,0.2]
[1760832015448,0.71,187.85,187.84,0.2]
[1760832016230,0.71,187.88,187.84,6.08367972]
[1760832017747,0.71,187.87,187.84,6.08367972]
[1760832017937,0.71,187.87,187.84,5.52367972]
[1760832018245,0.71,187.9,187.84,5.52367972]
[1760832018456,0.71,187.89,187.85,0.56]
[1760832018952,58.28145533,188.03,187.85,0.56]
[1760832018953,0.71,187.9,187.85,0.56]
[1760832019338,0.71,187.9,187.86,0.56]
[1760832020161,0.71,187.9,187.87,5.32282961]
[1760832020735,0.71,187.91,187.87,5.88282961]
[1760832021449,0.71,187.98,187.88,0.56]
[1760832021635,0.71,187.98,187.89,0.5322263]
[1760832021834,0.71,187.98,187.9,0.56]
[1760832022044,0.71,188.0,187.91,0.53216965]
[1760832022348,0.71,188.0,187.92,19.18494677]
[1760832022541,0.71,187.99,187.92,8.90353853]
[1760832022728,10.87647521,188.03,187.92,8.90353853]
[1760832022729,0.71,187.98,187.92,8.90353853]
[1760832023055,0.71,187.97,187.92,8.90353853]
[1760832023348,0.71,187.96,187.92,9.46353853]
[1760832025345,0.71,188.0,187.93,0.56]
[1760832025546,0.71,188.0,187.94,5.32084707]
[1760832025869,0.71,188.0,187.95,0.56]
[1760832026065,10.87647521,188.03,187.95,0.56]
[1760832026269,0.71,188.0,187.95,0.56]
[1760832026442,0.71,187.99,187.95,0.56]
[1760832027052,0.71,188.0,187.95,0.56]
[1760832027748,0.71,188.02,187.96,5.88028091]
[1760832027944,0.71,188.01,187.96,5.88028091]
[1760832028145,0.71,188.01,187.96,16.75675612]
[1760832028753,0.71,188.01,187.97,0.56]
[1760832029677,1e-08,188.04,187.99,5.31943188]
[1760832030039,0.71000001,188.04,188.0,0.56]
[1760832030346,0.71000001,188.04,188.0,11.99647521]
[1760832031364,0.71000001,188.04,188.01,5.31886601]
[1760832032683,0.71,188.03,188.01,5.31886601]
[1760832033352,0.71000001,188.04,188.01,5.31886601]
[1760832033872,0.71,188.03,187.97,5.31999787]
[1760832034170,0.71,188.02,187.97,5.31999787]
[1760832034469,0.71,188.01,187.97,5.31999787]
[1760832034766,0.71,188.0,187.97,5.31999787]
[1760832035471,0.71,187.99,187.96,16.19671827]
[1760832035679,0.71,187.98,187.96,5.32024306]
[1760832035978,1e-08,188.04,187.97,0.56]
[1760832035979,0.71,188.02,187.97,0.56]
[1760832036468,0.71,188.02,187.98,0.56]
[1760832036674,1e-08,188.04,187.96,5.32024306]
[1760832036675,1e-08,188.04,187.97,10.87647521]
[1760832036846,1e-08,188.04,187.99,0.56]
[1760832037049,0.71000001,188.04,187.99,0.56]
[1760832037249,0.71,188.03,187.99,0.56]
[1760832037470,0.71,188.03,188.0,5.31914893]
[1760832038357,1e-08,188.04,188.0,5.87914893]
[1760832038559,0.71000001,188.04,188.0,16.75562414]
[1760832038872,1e-08,188.04,188.0,16.75562414]
[1760832039474,1e-08,188.04,188.01,0.56]
[1760832040069,1e-08,188.04,188.0,29.49349648]
[1760832040264,1e-08,188.04,188.0,30.05349648]
[1760832040465,0.71000001,188.04,188.0,30.05349648]
[1760832043764,0.71000001,188.04,188.0,19.17702127]
[1760832044978,1e-08,188.04,188.0,19.17702127]
[1760832045282,0.65000001,188.04,188.0,19.17702127]
[1760832046288,0.33082561,188.04,188.0,13.29787234]
[1760832046575,22.88,188.08,188.01,0.69]
[1760832046781,102.1,188.07,188.01,0.69]
[1760832047358,102.1,188.07,188.02,5.31858312]
[1760832048080,102.1,188.07,188.03,0.69]
[1760832048281,102.75,188.07,188.03,0.69]
[1760832049486,102.75,188.07,188.04,5.31801744]
[1760832051481,102.70008541,188.07,188.04,5.31801744]
[1760832051673,102.05008541,188.07,188.04,5.31801744]
[1760832051867,0.65,188.06,188.04,5.31801744]
[1760832052587,102.05008541,188.07,188.04,5.31801744]
[1760832052964,0.65,188.06,188.04,5.31801744]
[1760832053160,102.05008541,188.07,188.04,5.31801744]
[1760832053364,102.70008541,188.07,188.04,5.31801744]
[1760832054365,102.05008541,188.07,188.04,5.31801744]
[1760832054569,102.05008541,188.07,188.04,6.00801744]
[1760832054970,102.70008541,188.07,188.04,5.31801744]
[1760832057903,102.05008541,188.07,188.04,5.31801744]
[1760832058089,102.70008541,188.07,188.04,5.31801744]
[1760832061086,102.05008541,188.07,188.04,5.31801744]
[1760832061285,0.65,188.06,188.04,5.31801744]
[1760832062580,102.70008541,188.07,188.04,5.31801744]
[1760832063196,0.65,188.06,188.03,5.31830027]
[1760832063891,0.65,188.06,188.03,6.00830027]
[1760832064089,0.65,188.06,188.03,5.31830027]
[1760832064579,0.65,188.06,188.03,6.00830027]
[1760832065692,0.65,188.06,188.03,32.80830027]
[1760832066292,0.65,188.06,188.03,6.00830027]
[1760832066494,0.65,188.06,188.03,32.80830027]
[1760832068698,102.77008541,188.07,188.03,19.29405094]
[1760832068902,102.77008541,188.07,188.03,46.09405094]
[1760832069107,102.05008541,188.13,188.04,1.21180174]
[1760832069404,0.72,188.11,188.05,0.68]
[1760832069604,0.72,188.11,188.06,26.8]
[1760832069798,0.72,188.11,188.07,0.68]
[1760832069998,0.72,188.1,188.07,0.68]
[1760832070199,0.72,188.1,188.06,26.8]
[1760832070383,0.72,188.1,188.06,27.48]
[1760832070582,0.72,188.09,188.07,5.31716913]
[1760832071388,0.72,188.11,188.07,5.99716913]
[1760832072107,102.05008541,188.12,188.07,5.99716913]
[1760832072290,0.72,188.11,188.07,5.99716913]
[1760832072483,102.05008541,188.12,188.08,0.68]
[1760832072686,102.77008541,188.12,188.08,0.68]
[1760832073097,102.05008541,188.12,188.08,0.68]
[1760832073408,102.74008541,188.12,188.08,0.68]
[1760832073800,102.74008541,188.12,188.09,0.68]
[1760832074595,102.74008541,188.12,188.1,5.3163211]
[1760832074810,102.05008541,188.12,188.1,5.3163211]
[1760832076505,102.74008541,188.12,188.1,5.3163211]
[1760832077609,102.74008541,188.12,188.11,0.68]
[1760832077610,102.05008541,188.12,188.11,0.68]
[1760832079288,0.1,188.15,188.12,5.3157559]
[1760832079606,0.1,188.15,188.13,28.01154733]
[1760832079998,0.1,188.15,188.14,0.68]
[1760832080299,0.1,188.15,188.14,32.81519081]
[1760832080502,0.1,188.15,188.14,32.13519081]
[1760832081710,0.1,188.15,188.14,32.81519081]
[1760832082304,0.1,188.15,188.14,32.13519081]
[1760832083007,0.1,188.15,188.14,32.81519081]
[1760832085714,0.1,188.15,188.14,42.04038307]
[1760832087323,0.1,188.15,188.14,52.91685828]
[1760832091720,0.1,188.15,188.14,57.17731364]
[1760832092408,0.1,188.16,188.14,57.17731364]
[1760832092605,0.1,188.16,188.15,12.08796604]
[1760832092919,1e-08,188.16,188.15,12.08796604]
[1760832093219,1e-08,188.16,188.15,20.6231583]
[1760832094221,1e-08,188.16,188.15,25.93806661]
[1760832097125,1e-08,188.16,188.15,52.73806661]
[1760832097322,0.69,188.21,188.15,92.59987898]
[1760832097520,0.69,188.21,188.18,22.88]
[1760832097704,0.69,188.21,188.19,27.31137786]
[1760832097903,0.69,188.21,188.19,35.9433361]
[1760832098221,0.69,188.2,188.19,8.63195824]
[1760832098416,0.69,188.2,188.15,78.93319589]
[1760832098625,0.69,188.19,188.16,35.43195824]
[1760832098816,0.69,188.18,188.17,26.8]
[1760832099025,0.69,188.18,188.17,32.11434341]
[1760832099908,8.63195824,188.22,188.17,45.40020194]
[1760832100116,0.69,188.2,188.17,45.40020194]
[1760832100314,0.69,188.19,188.17,45.40020194]
[1760832100515,0.69,188.18,188.17,45.40020194]
[1760832104523,0.69,188.18,188.17,13.28585853]
[1760832104710,0.69,188.18,188.17,40.06585853]
[1760832105325,0.69,188.19,188.17,40.06585853]
[1760832106133,0.69,188.21,188.17,40.06585853]
[1760832106638,0.69,188.2,188.18,0.5314061]
[1760832106839,0.69,188.2,188.19,5.31377862]
[1760832108825,0.69,188.2,188.17,18.60020194]
[1760832109019,0.69,188.19,188.17,45.38020194]
[1760832109228,0.69,188.18,188.17,45.38020194]
[1760832112840,0.69,188.21,188.17,46.07020194]
[1760832114049,8.63195824,188.22,188.18,0.69]
[1760832114348,9.32195824,188.22,188.18,0.69]
[1760832114652,8.63195824,188.22,188.19,0.69]
[1760832114829,8.63195824,188.22,188.2,5.31349628]
[1760832115031,9.32195824,188.22,188.2,32.09349628]
[1760832118440,8.63195824,188.22,188.2,32.09349628]
[1760832119840,9.32195824,188.22,188.2,32.09349628]
[1760832120429,8.63195824,188.22,188.2,5.31349628]
[1760832120630,0.69,188.21,188.19,32.09373464]
[1760832120836,0.69,188.2,188.17,5.3141522]
[1760832121049,0.69,188.19,188.17,5.3141522]
[1760832121433,8.63195824,188.22,188.17,5.3141522]
[1760832121434,0.69,188.18,188.17,5.3141522]
[1760832121953,0.69,188.18,188.13,1.22154733]
[1760832121954,0.69,188.18,188.11,0.69]
[1760832122160,0.69,188.18,188.12,8.63195824]
[1760832122340,0.69,188.17,188.11,18.6061347]
[1760832122655,22.88,188.19,188.11,8.63195824]
[1760832122656,0.69,188.16,188.11,8.63195824]
[1760832122859,0.69,188.15,188.09,5.31654676]
[1760832123052,0.69,188.14,188.09,5.31654676]
[1760832123255,0.69,188.13,188.09,5.31654676]
[1760832123439,0.69,188.12,188.09,5.31654676]
[1760832123635,0.69,188.11,188.09,5.31654676]
[1760832124035,0.69,188.1,188.09,5.31654676]
[1760832124332,22.88,188.15,188.07,22.31700449]
[1760832124539,22.88,188.15,188.07,5.31700449]
[1760832124540,0.69,188.1,188.07,5.31700449]
[1760832124753,22.88,188.15,188.07,5.31700449]
[1760832125055,0.69,188.09,188.07,5.31700449]
[1760832125355,0.69,188.08,188.07,5.31700449]
[1760832125651,0.69,188.1,188.07,5.31700449]
[1760832125874,0.69,188.09,188.07,5.31700449]
[1760832126549,0.69,188.09,188.04,40.78464307]
[1760832126550,0.69,188.09,188.05,18.61207125]
[1760832126738,0.69,188.09,188.05,19.30207125]
[1760832129840,0.69,188.09,188.07,5.31716913]
[1760832130249,102.05008541,188.14,188.07,5.31716913]
[1760832130443,102.75008541,188.13,188.07,5.31716913]
[1760832130649,0.7,188.12,188.07,5.31716913]
[1760832130959,102.05008541,188.13,188.07,5.31716913]
[1760832130960,0.7,188.11,188.07,5.31716913]
[1760832131155,102.05008541,188.13,188.06,5.31742325]
[1760832131156,0.7,188.1,188.06,5.31742325]
[1760832131349,0.7,188.09,188.06,5.31742325]
[1760832131661,0.7,188.08,188.06,5.31742325]
[1760832131960,0.7,188.1,188.05,18.61207125]
[1760832132163,0.7,188.09,188.05,19.31207125]
[1760832133741,0.66,188.09,188.05,19.31207125]
[1760832133940,102.05008541,188.13,188.05,19.31207125]
[1760832134141,102.05008541,188.13,188.04,26.8]
[1760832134142,125.59008541,188.12,188.02,15.98934043]
[1760832134459,22.88,188.08,188.0,23.37914893]
[1760832134662,102.71008541,188.07,188.0,24.08914893]
[1760832134852,102.05008541,188.07,188.01,0.71]
[1760832135048,0.66,188.06,188.0,36.67702127]
[1760832135250,0.66,188.05,188.0,36.67702127]
[1760832135441,102.05008541,188.07,188.0,37.38702127]
[1760832135442,0.66,188.04,188.0,37.38702127]
[1760832138553,102.05008541,188.07,188.0,37.38702127]
[1760832138752,0.66,188.04,188.0,36.67702127]
[1760832139059,0.66,188.03,188.0,18.61702127]
[1760832139257,102.05008541,188.07,188.0,18.61702127]
[1760832139475,0.66,188.03,188.0,18.61702127]
[1760832144657,0.66,188.02,187.99,5.31940428]
[1760832144861,0.66,188.01,187.99,5.31940428]
[1760832145058,0.66,188.0,187.99,5.31940428]
[1760832145265,0.66,188.0,187.98,0.2]
[1760832145470,0.66,187.99,187.98,0.2]
[1760832146173,0.66,188.01,187.98,5.519701]
[1760832146359,0.66,188.0,187.98,5.519701]
[1760832147271,0.66,188.0,187.98,0.2]
[1760832147572,0.66,187.99,187.98,0.2]
[1760832150351,23.54,187.99,187.98,0.2]
[1760832155652,0.66,187.99,187.98,0.2]
[1760832156052,23.54,187.99,187.98,0.2]
[1760832157466,0.66,187.99,187.98,0.2]
[1760832157678,23.54,187.99,187.98,0.2]
[1760832160468,34.41647521,187.99,187.98,0.2]
[1760832160666,39.73590709,187.99,187.98,0.2]
[1760832160875,55.16833225,187.99,187.88,0.2]
[1760832161376,53.0344868,187.99,187.88,0.91]
[1760832161583,22.88,187.95,187.88,0.91]
[1760832161788,22.88,187.94,187.88,0.2]
[1760832162166,0.66,187.93,187.88,0.2]
[1760832166486,102.1,187.92,187.88,0.2]
[1760832166786,0.69,187.91,187.88,0.2]
[1760832166990,102.1,187.9,187.88,0.2]
[1760832169391,102.1,187.9,187.89,0.7]
[1760832170191,102.1,187.9,187.88,0.2]
[1760832170373,102.79,187.9,187.88,0.2]
[1760832172086,102.1,187.9,187.88,0.2]
[1760832172279,102.1,187.89,187.88,0.2]
[1760832176195,102.1,187.89,187.88,0.9]
[1760832177091,102.1,187.93,187.88,6.2225463]
[1760832177300,102.1,187.93,187.89,0.7]
[1760832177501,22.88,187.96,187.89,0.7]
[1760832177705,102.79,187.99,187.89,1.2322263]
[1760832177904,125.67,187.99,187.89,1.2322263]
[1760832178211,2.0,188.05,187.91,18.62593794]
[1760832178376,2.69,188.04,187.92,0.7]
[1760832178575,22.88,188.0,187.92,0.7]
[1760832178784,0.69,187.99,187.92,0.7]
[1760832179302,0.69,187.99,187.92,6.0211316]
[1760832179477,0.69,187.99,187.93,0.7]
[1760832180497,0.69,187.99,187.93,6.02109315]
[1760832180712,22.88,188.0,187.94,0.7]
[1760832180892,23.57,188.0,187.94,0.7]
[1760832181092,22.88,187.99,187.92,5.32141332]
[1760832181401,23.57,187.99,187.93,0.7]
[1760832181706,0.69,187.98,187.93,0.7]
[1760832182000,0.69,187.97,187.93,0.7]
[1760832182402,22.88,187.99,187.89,0.5322263]
[1760832182711,0.69,187.96,187.9,6.02197977]
[1760832182879,0.69,187.95,187.9,6.02197977]
[1760832183202,0.69,187.95,187.91,0.7]
[1760832184598,0.69,187.95,187.91,6.02165482]
[1760832184784,0.69,187.94,187.88,5.52254466]
[1760832184980,5.31948061,187.99,187.88,5.52254466]
[1760832184981,0.69,187.93,187.88,5.52254466]
[1760832185175,22.88,187.98,187.89,0.7]
[1760832185176,0.69,187.92,187.89,0.7]
[1760832185696,0.69,187.93,187.89,0.7]
[1760832187082,102.78,187.92,187.88,0.2]
[1760832190400,102.1,187.91,187.88,0.2]
[1760832191001,0.68,187.9,187.88,0.2]
[1760832192073,22.88,187.89,187.88,0.2]
[1760832192275,23.56,187.89,187.88,0.2]
[1760832194180,0.68,187.89,187.88,0.2]
[1760832203607,23.56,187.89,187.88,0.2]
[1760832207397,16.87873823,187.89,187.88,0.2]
[1760832208081,39.75873823,187.89,187.88,0.2]
[1760832208281,16.87873823,187.89,187.88,0.2]
[1760832209783,20.46253363,187.89,187.88,0.2]
[1760832209991,43.34253363,187.89,187.88,0.2]
[1760832210209,39.75873823,187.89,187.88,0.2]
[1760832210409,20.4618487,187.89,187.88,0.2]
[1760832210589,10.87647521,187.85,187.76,0.2]
[1760832211889,10.87647521,187.85,187.77,5.32560908]
[1760832212302,22.88,187.83,187.76,0.2]
[1760832212914,102.1,187.82,187.76,0.2]
[1760832213308,10.87647521,187.81,187.76,0.2]
[1760832213497,23.6,187.83,187.76,0.2]
[1760832213498,102.1,187.8,187.76,0.2]
[1760832215312,102.1,187.8,187.76,5.52591872]
[1760832215807,102.1,187.86,187.77,0.93256643]
[1760832216112,0.72,187.92,187.8,10.87647521]
[1760832216317,4.29618614,187.96,187.82,18.63486315]
[1760832216611,3.57618614,187.98,187.84,10.87647521]
[1760832216801,8.89539084,188.0,187.85,0.53233963]
[1760832217126,4.29618614,188.01,187.86,10.87647521]
[1760832217424,3.57618614,188.04,187.9,10.87647521]
[1760832217592,22.88,188.02,187.91,0.53216965]
[1760832218296,22.88,188.02,187.92,5.32141336]
[1760832219108,10.87647521,188.03,187.92,5.32141336]
[1760832219306,22.88,188.0,187.92,5.32141336]
[1760832221619,23.6,188.0,187.92,5.32141336]
[1760832227604,22.88,187.99,187.92,5.32141336]
[1760832227933,102.1,188.02,187.93,0.53211302]
[1760832228220,102.1,188.02,187.94,5.32084707]
[1760832228394,102.1,188.02,187.95,0.53205639]
[1760832228599,0.71,188.05,187.97,22.88]
[1760832228807,0.71,188.05,187.98,0.53197148]
[1760832229710,0.71,188.05,187.99,5.31943188]
[1760832230213,22.88,188.07,187.99,5.31943188]
[1760832231524,22.88,188.07,188.0,0.53191489]
[1760832231822,0.71,188.08,188.0,0.53191489]
[1760832232023,23.59,188.08,188.0,0.53191489]
[1760832232610,0.71,188.08,188.0,0.53191489]
[1760832234221,0.71,188.08,188.01,5.31886601]
[1760832236825,102.1,188.07,188.02,0.53185831]
[1760832237032,102.1,188.07,188.03,0.4]
[1760832237231,102.1,188.07,188.04,0.53180174]
[1760832238304,102.1,188.07,188.04,0.93180174]
[1760832238509,102.1,188.07,188.04,0.4]
[1760832238720,102.1,188.07,188.05,5.31773464]
[1760832239116,0.71,188.1,188.05,5.31773464]
[1760832239530,0.71,188.1,188.05,18.61207125]
[1760832240529,0.71,188.1,188.05,19.01207125]
[1760832240730,102.81,188.13,188.06,0.93174518]
[1760832240939,102.1,188.12,188.06,0.93174518]
[1760832241507,102.1,188.12,188.07,0.4]
[1760832242121,0.71,188.14,188.08,0.93168864]
[1760832242431,0.71,188.15,188.1,22.88]
[1760832242622,0.71,188.14,188.11,5.31603848]
[1760832243234,0.1,188.17,188.11,18.6061347]
[1760832243235,0.81,188.17,188.11,18.6061347]
[1760832243436,0.71,188.16,188.1,0.53163211]
[1760832243622,22.88,188.1,188.02,0.53185831]
[1760832243810,22.88,188.05,187.91,16.38934043]
[1760832244013,0.71,188.04,187.94,22.88]
[1760832244225,0.71,188.03,187.94,22.88]
[1760832244546,0.71,188.02,187.93,22.88]
[1760832244757,22.88,188.05,187.9,5.32197977]
[1760832244758,10.87647521,188.0,187.9,5.32197977]
[1760832245031,22.88,187.93,187.81,18.63585538]
[1760832245234,0.71,187.92,187.81,18.63585538]
[1760832245437,0.71,187.91,187.84,22.88]
[1760832245641,0.71,187.9,187.84,22.88]
[1760832245848,0.71,187.89,187.84,22.88]
[1760832246013,0.71,187.88,187.84,28.20360617]
[1760832246409,0.71,187.9,187.84,28.20360617]
[1760832247427,0.71,187.9,187.84,41.51280548]
[1760832247627,0.71,187.89,187.84,41.51280548]
[1760832247841,0.71,187.88,187.84,5.32360617]
[1760832248043,0.67,187.87,187.81,28.20453011]
[1760832248347,0.67,187.86,187.73,1.13267991]
[1760832248520,0.67,187.86,187.75,5.52600396]
[1760832248719,10.87647521,187.85,187.76,5.52591903]
[1760832249020,0.67,187.84,187.76,0.2]
[1760832249223,22.88,187.82,187.76,0.2]
[1760832249424,22.88,187.78,187.75,0.2]
[1760832249931,0.67,187.77,187.75,0.2]
[1760832250845,10.87647521,187.76,187.75,0.2]
[1760832251143,0.67,187.76,187.75,0.2]
[1760832253145,0.67,187.79,187.75,0.2]
[1760832253535,0.7,187.82,187.76,1.1325948]
[1760832253742,0.7,187.82,187.76,0.6]
[1760832254046,15.3022967,187.94,187.76,0.6]
[1760832254047,0.7,187.84,187.76,0.6]
[1760832254242,0.7,187.85,187.77,5.32566437]
[1760832254442,0.7,187.84,187.77,5.32566437]
[1760832254745,13.3022967,187.94,187.77,5.32566437]
[1760832254746,0.7,187.83,187.77,5.32566437]
[1760832256128,26.60043917,187.97,187.75,14.64820238]
[1760832256129,0.7,187.82,187.75,28.40597792]
[1760832256340,0.7,187.81,187.75,28.40597792]
[1760832256546,0.7,187.81,187.75,41.72155714]
[1760832257133,0.7,187.83,187.75,41.72155714]
[1760832257347,0.7,187.83,187.75,42.32155714]
[1760832257556,22.88,187.84,187.76,0.6]
[1760832257856,22.88,187.84,187.77,5.32566437]
[1760832258748,23.58,187.84,187.77,5.32566437]
[1760832259344,0.7,187.83,187.76,5.32589071]
[1760832259651,0.7,187.82,187.75,5.52621242]
[1760832259954,0.7,187.81,187.75,5.52621242]
[1760832260448,22.88,187.83,187.75,0.2]
[1760832260449,0.7,187.8,187.75,0.2]
[1760832260852,22.88,187.84,187.75,0.2]
[1760832260853,10.87647521,187.83,187.75,0.2]
[1760832261158,0.7,187.79,187.75,5.52620264]
[1760832261344,0.7,187.78,187.75,0.2]
[1760832261545,22.88,187.8,187.75,0.2]
[1760832262154,0.7,187.79,187.75,0.2]
[1760832264156,0.7,187.78,187.75,0.2]
[1760832264363,0.7,187.77,187.75,0.2]
[1760832264553,0.7,187.76,187.75,0.2]
[1760832265142,22.88,187.8,187.75,0.2]
[1760832265448,0.7,187.78,187.75,0.2]
[1760832265640,0.7,187.77,187.75,0.2]
[1760832266268,102.1,187.76,187.75,0.2]
[1760832266645,102.8,187.76,187.75,0.2]
[1760832270175,102.1,187.76,187.75,0.2]
[1760832271172,102.8,187.76,187.75,0.2]
[1760832271544,0.7,187.76,187.75,0.2]
[1760832275684,23.58,187.76,187.75,0.2]
[1760832276276,0.7,187.76,187.75,0.2]
[1760832280186,23.58,187.76,187.75,0.2]
[1760832287386,22.88,187.76,187.75,0.2]
[1760832290971,0.68,187.78,187.75,0.2]
[1760832291186,22.88,187.77,187.75,0.2]
[1760832291481,22.88,187.77,187.75,0.8]
[1760832291799,22.88,187.77,187.75,0.2]
[1760832293601,0.68,187.79,187.75,0.2]
[1760832293904,0.68,187.78,187.75,0.2]
[1760832295284,4.26707712,187.8,187.75,0.2]
[1760832295484,0.68,187.83,187.75,0.8]
[1760832295792,3.58701859,187.82,187.76,0.6]
[1760832296107,16.20017861,187.84,187.75,0.2]
[1760832296108,4.26701859,187.81,187.75,0.2]
[1760832296310,23.56,187.81,187.75,0.2]
[1760832300407,22.88,187.8,187.75,0.2]
[1760832300706,22.88,187.8,187.75,5.52620904]
[1760832300884,0.68,187.79,187.75,5.52620904]
[1760832301484,0.68,187.78,187.75,0.2]
[1760832301982,0.68,187.77,187.75,0.2]
[1760832302799,22.88,187.76,187.75,0.2]
[1760832303005,23.56,187.76,187.75,0.2]
[1760832305284,34.43647521,187.76,187.75,0.2]
[1760832305485,39.76242322,187.76,187.75,0.2]
[1760832305682,43.35449068,187.76,187.75,0.2]
[1760832313208,59.36449068,187.76,187.75,0.2]
[1760832313413,43.35449068,187.76,187.75,0.2]
[1760832313910,45.35449068,187.76,187.75,0.2]
[1760832317717,43.35449068,187.76,187.75,0.2]
[1760832318014,20.46555339,187.76,187.75,0.2]
[1760832320614,14.45960538,187.76,187.75,0.2]
[1760832320798,10.87647521,187.76,187.75,0.2]
[1760832321810,11.56647521,187.76,187.75,0.2]
[1760832322098,22.88,187.76,187.75,0.8]
[1760832322618,33.75647521,187.76,187.75,0.2]
[1760832323417,10.87647521,187.8,187.75,0.8]
[1760832323720,22.88,187.77,187.75,0.8]
[1760832324702,22.88,187.77,187.76,0.6]
[1760832325915,0.69,187.86,187.76,0.6]
[1760832326129,102.1,187.8,187.76,0.6]